Cogmind - Beta 10.2 @@@ ROGUE MODE // 2020.11.01 @ 11:33:31 // Halloween2020/ForbiddenLore Player: Pimski Result: Destroyed by 8R-AWN with 8R-AWN's Boregun Performance ------------- Evolutions (0) 0 Regions Visited (3) 600 Robots Destroyed (33) 165 Value Destroyed (444) 444 Prototype IDs (23) 460 Alien Tech Used (0) 0 Bonus (-531) -531 TOTAL SCORE: 1138 Bonus ------- Aligned with FarCom 300 Friendly Fire -831 Cogmind --------- Core Integrity 0/250 Matter 300/300 Energy 100/100 System Corruption 0% Temperature Cool (0) Movement Core (1150) Ox22 Location -10/Exiles Parts ------- > --- POWER (1) -------- (None) > --- PROPULSION (2) --- (None) > --- UTILITY (2) ------ High-capacity Storage Unit High-capacity Storage Unit > --- WEAPON (2) ------- Mining Claw Mining Claw > --- INVENTORY (20) --- Advanced Myomer Leg Medium Storage Unit Medium Storage Unit Large Storage Unit Large Storage Unit Light Assault Rifle Light Assault Rifle Light Assault Rifle Light Assault Rifle Autogun Autogun Autogun Autogun Rocket Launcher Rocket Launcher Mining Claw Mining Claw Peak State ------------ > --- POWER ------------ Ion Engine > --- PROPULSION ------- Light Treads Light Treads > --- UTILITY ---------- High-capacity Storage Unit High-capacity Storage Unit > --- WEAPON ----------- Autogun Autogun > --- INVENTORY -------- Light Treads Light Treads Medium Storage Unit Medium Storage Unit Large Storage Unit Large Storage Unit Light Assault Rifle Light Assault Rifle Light Assault Rifle Light Assault Rifle Autogun Autogun Rocket Launcher Rocket Launcher Field Lobotomy Kit Mining Claw Mining Claw Mining Claw Mining Claw [Rating: 12] Favorites ----------- Power Ion Engine Engine Ion Engine Propulsion Light Treads Treads Light Treads Leg Aluminum Leg Utility Large Storage Unit Device Improved Terrain Scanner Storage Large Storage Unit Weapon Autogun Energy Gun Small Laser Ballistic Gun Autogun Launcher Rocket Launcher Slashing Weapon Mining Claw Build | -11 -10 -10 -10 ------- Run | Scr Mat Min Exi Slots Evolved . | . . . . Power . | . . . . Propulsion . | . . . . Utility . | . . . . Weapon . | . . . . Parts Attached 27 | 3 14 2 8 Power 1 | . 1 . . Engine 1 | . 1 . . Core . | . . . . Reactor . | . . . . Propulsion 7 | . 5 . 2 Treads 7 | . 5 . 2 Leg . | . . . . Wheel . | . . . . Hover . | . . . . Flight . | . . . . Utility 9 | 2 5 . 2 Device 3 | 2 1 . . Storage 6 | . 4 . 2 Processor . | . . . . Hackware . | . . . . Protection . | . . . . Artifact . | . . . . Weapon 10 | 1 3 2 4 Energy Gun 1 | 1 . . . Energy Cannon . | . . . . Ballistic Gun 5 | . 3 2 . Ballistic Cannon . | . . . . Launcher 2 | . . . 2 Special Weapon . | . . . . Impact Weapon . | . . . . Slashing Weapon 2 | . . . 2 Piercing Weapon . | . . . . Special Melee Weapon . | . . . . Unidentified Prototypes . | . . . . Parts Lost 8 | . 3 . 5 Power 2 | . 1 . 1 Propulsion 4 | . . . 4 Utility 1 | . 1 . . Weapon 1 | . 1 . . Highest Loss Streak 5 | . 1 . 5 Average Slot Usage (%) 99 | . 99 100 99 Engine 13 | . 14 14 13 Treads 27 | . 26 28 27 Device 3 | . 9 . . Storage 24 | . 18 28 28 Ballistic Gun 26 | . 25 28 26 Naked Turns . | . . . . Heaviest Build 75 | 10 39 43 75 Greatest Support 40 | 20 40 40 40 Greatest Overweight (x) 3 | . . 1 3 Average Overweight (x) . | . . . 1 Largest Inventory Capacity 20 | 6 16 16 20 Average Capacity 13 | 6 8 16 18 Most Carried 20 | 6 16 16 20 Average Carried 13 | 6 7 16 18 Final Capacity 20 | 6 16 16 20 Final Carried 17 | 6 16 16 17 Class Distribution -------------------- 62% | Mutant 28% | Hauler-Mutant 9% | Scavenger-Mutant Dominant Class ---------------- Mutant | -10/Materials Mutant | -10/Mines Hauler-Mutant | -10/Exiles Resources | -11 -10 -10 -10 ----------- Run | Scr Mat Min Exi Matter Collected 814 | 245 330 20 219 Remotely 17 | 17 . . . Salvage Created 739 | 107 600 . 32 Parts 69 | 12 45 . 12 Haulers Intercepted 2 | . 2 . . Recyclers Shooed 1 | . 1 . . Parts Field Recycled . | . . . . Retrieved Matter . | . . . . Parts Self-Destructed . | . . . . Prevented . | . . . . Kills | -11 -10 -10 -10 ------- Run | Scr Mat Min Exi Combat Hostiles Destroyed 19 | . 16 1 2 Guns 17 | . 16 1 . AOE 2 | . . . 2 Classes Destroyed 8 | 2 4 1 1 Tunneler 2 | 2 . . . Hauler 2 | . 2 . . Recycler 2 | 1 1 . . Operator 2 | . 2 . . Swarmer 9 | . 9 . . Grunt 7 | . 7 . . Demolisher 1 | . . 1 . Assembled 7 | . . . 7 Best Kill Streak 3 | 2 3 1 3 Combat Bots Only 3 | . 3 1 2 Max Kills in Single Turn 5 | 1 2 1 5 Gunslinging 1 | . 1 . . Exploded 2 | . . . 2 Melee . | . . . . Uniques/NPCs Destroyed 1 | . . . 1 EX-HEX (-10/Exiles) Combat | -11 -10 -10 -10 -------- Run | Scr Mat Min Exi Damage Taken 1296 | . 450 327 519 Core 265 | . 53 15 197 Absorbed by Shields . | . . . . Core Remaining (%) 100 | 100 . . . Volleys Fired 75 | 9 62 2 2 Largest 2 | 2 2 2 2 Hottest 66 | 60 60 46 66 Shots Fired 149 | 17 124 4 4 Gun 145 | 17 124 4 . Cannon . | . . . . Launcher 4 | . . . 4 Special . | . . . . Kinetic 126 | 11 111 4 . Thermal 19 | 6 13 . . Explosive 4 | . . . 4 Electromagnetic . | . . . . Robot Hit Streak 13 | 4 13 6 7 Robot Miss Streak 2 | 1 2 . 2 Penetration Max . | . . . . Secondary Targets 1 | . 1 . . Max Gunslinging Chain 1 | . 1 . . Shots Hit Robots 111 | 11 86 4 10 Core Hits 57 | 5 36 2 14 Critical Hits . | . . . . Critical Kills . | . . . . Critical Parts Destroyed . | . . . . Melee Attacks 14 | . . . 14 Impact . | . . . . Slashing 14 | . . . 14 Piercing . | . . . . Sneak Attacks 1 | . . . 1 Combat Hostiles . | . . . . Follow-up Attacks 2 | . . . 2 Damage Inflicted 1641 | 92 823 63 663 Guns 974 | 92 819 63 . Cannons . | . . . . Explosions 420 | . . . 420 Melee 243 | . . . 243 Ramming 4 | . 4 . . Kinetic 843 | 58 722 63 . Thermal 131 | 34 97 . . Explosive 420 | . . . 420 Electromagnetic . | . . . . Impact . | . . . . Slashing 243 | . . . 243 Piercing . | . . . . Highest Corruption . | . . . . Average Corruption . | . . . . Corruption Purged . | . . . . Overload Shots . | . . . . Overflow Damage 38 | . . . 38 Projectiles . | . . . . Explosions 38 | . . . 38 Melee . | . . . . Knockbacks . | . . . . Impact . | . . . . Kinetic . | . . . . Secondary . | . . . . Self-Inflicted Damage . | . . . . Shots . | . . . . Rammed 2 | . 2 . . Targets Rammed 2 | . 2 . . Kicked . | . . . . Crushed . | . . . . Highest Temperature 40 | 40 38 6 12 Average Temperature 14 | 20 13 4 7 Received Heat Transfer 114 | . 114 . . Siege Activations . | . . . . Robots Corrupted . | . . . . Combat Hostiles . | . . . . Parts Fried . | . . . . Impact Corruptions . | . . . . Robots Melted . | . . . . Combat Hostiles . | . . . . Parts Melted 1 | . 1 . . Heat Transferred 300 | 75 225 . . Parts Sabotaged . | . . . . Parts Stolen . | . . . . Parts Stripped . | . . . . Power Chain Reactions . | . . . . Missiles Intercepted . | . . . . Alert | -11 -10 -10 -10 ------- Run | Scr Mat Min Exi Peak Influence 277 | 15 277 67 . Initial 67 | . 9 67 . Average 100 | 7 133 47 . Maximum Alert Level 1 | . 1 . . Low Security (%) 94 | 100 90 100 . Level 1 5 | . 9 . . Level 2 . | . . . . Level 3 . | . . . . Level 4 . | . . . . Level 5 . | . . . . High Security . | . . . . Max Security . | . . . . Squads Dispatched 4 | . 4 . . Investigation 1 | . 1 . . Extermination . | . . . . Reinforcement 3 | . 3 . . Assault . | . . . . Garrison . | . . . . Intercept . | . . . . Construction Impeded . | . . . . Haulers Reinforced . | . . . . Stealth | -11 -10 -10 -10 --------- Run | Scr Mat Min Exi Distress Signals 3 | . 3 . . Communications Jammed . | . . . . Distress Signals . | . . . . Times Spotted 32 | . 27 2 3 Peak Tracking Total 5 | . 5 2 4 Tactical Retreats . | . . . . Traps | -11 -10 -10 -10 ------- Run | Scr Mat Min Exi Traps Triggered 2 | . 2 . . Indirectly . | . . . . Trap Hack Attempts . | . . . . Triggered . | . . . . Disarmed . | . . . . Reprogrammed . | . . . . Reused . | . . . . Traps Extracted . | . . . . Installed . | . . . . Triggered . | . . . . Machines | -11 -10 -10 -10 ---------- Run | Scr Mat Min Exi Machines Disabled 3 | . . . 3 Max in Single Turn 2 | . . . 2 Machines Sabotaged . | . . . . Garrisons Compromised . | . . . . Overloaded Fab Kills . | . . . . Fab Network Shutdowns . | . . . . Hacking | -11 -10 -10 -10 --------- Run | Scr Mat Min Exi Machines Accessed 6 | . 4 . 2 Terminals 4 | . 4 . . Fabricators . | . . . . Repair Stations . | . . . . Recycling Units . | . . . . Scanalyzers . | . . . . Garrison Access . | . . . . Total Hacks 12 | . 10 . 2 Successful 5 | . 3 . 2 Failed 6 | . 6 . . Catastrophic . | . . . . Database Lockouts 1 | . 1 . . Manual 4 | . 3 . 1 Terminals 10 | . 10 . . Fabricators . | . . . . Repair Stations . | . . . . Recycling Units . | . . . . Scanalyzers . | . . . . Garrison Access . | . . . . Terminal Hacks 5 | . 3 . 2 Record 1 | . . . 1 Robot Analysis 1 | . 1 . . Locate Traps 1 | . 1 . . Recall Investigation 1 | . 1 . . EX-Prototype ID Bank 1 | . . . 1 Fabricator Hacks . | . . . . Repair Station Hacks . | . . . . Recycling Unit Hacks . | . . . . Scanalyzer . | . . . . Garrison Access Hacks . | . . . . Unauthorized Hacks . | . . . . Terminals . | . . . . Fabricators . | . . . . Repair Stations . | . . . . Recycling Units . | . . . . Scanalyzers . | . . . . Garrison Access . | . . . . Data Cores Recovered . | . . . . Used . | . . . . Hacking Detections 4 | . 4 . . Full Trace Events . | . . . . Feedback Events . | . . . . Feedback Blocked . | . . . . Robot Schematics Acquired . | . . . . Robots Built . | . . . . Matter . | . . . . Time . | . . . . Total Robot Build Rating . | . . . . Part Schematics Acquired . | . . . . Parts Built . | . . . . Matter . | . . . . Time . | . . . . Total Part Build Rating . | . . . . Parts Repaired . | . . . . Time . | . . . . Parts Recycled . | . . . . Recycled Matter . | . . . . Retrieved Matter . | . . . . Retrieved Components . | . . . . Parts Scanalyzed . | . . . . Part Schematics Acquired . | . . . . Parts Damaged . | . . . . Bothacking | -11 -10 -10 -10 ------------ Run | Scr Mat Min Exi Used RIF Installer . | . . . . Robots Hacked . | . . . . Non-combat . | . . . . Combat . | . . . . Robot Hacks Applied . | . . . . Relay Couplers Released . | . . . . Robots Rewired . | . . . . Allies Hacked . | . . . . Hacks Repelled . | . . . . Allies | -11 -10 -10 -10 -------- Run | Scr Mat Min Exi Total Allies . | . . . . Largest Group . | . . . . Highest-Rated Group . | . . . . Highest-Rated Ally . | . . . . Total Orders . | . . . . Ally Attacks . | . . . . Total Damage . | . . . . Kills . | . . . . Allies Corrupted . | . . . . Allies Melted . | . . . . Intel | -11 -10 -10 -10 ------- Run | Scr Mat Min Exi Robot Analysis Total 1 | . 1 . . Derelict Logs Recovered . | . . . . Drone Launches . | . . . . Drone Recoveries . | . . . . Exploration | -11 -10 -10 -10 ------------- Run | Scr Mat Min Exi Turns Passed 3009 | 89 1194 600 1126 Spaces Moved 1382 | 31 587 180 584 Core . | . . . . Treads 1318 | . 554 180 584 Legs 64 | 31 33 . . Wheels . | . . . . Hover . | . . . . Flight . | . . . . Fastest Speed 120 | 120 120 160 180 Average Speed 169 | 120 157 179 180 Slowest Speed 220 | 120 160 180 220 Overloaded Moves . | . . . . Propulsion Burnouts . | . . . . Robots Hopped . | . . . . Cave-ins Triggered . | . . . . Exploration Rate (%) 49 | 3 91 36 67 Regions Visited 3 Branch Regions 2 Pre-discovered Areas 1 | . . . 1 Known Exits Taken . | . . . . Unknown Exits Taken 3 | 1 1 1 . Scrap Searched . | . . . . Spaces Dug . | . . . . Terrain Destroyed 34 | . . . 34 Melee . | . . . . Projectile . | . . . . AOE 34 | . . . 34 Terrain Rammed . | . . . . Walls Destroyed . | . . . . Machines Disabled . | . . . . Actions | -11 -10 -10 -10 --------- Run | Scr Mat Min Exi Total 1902 | 66 749 453 634 Wait 344 | 23 47 270 4 Move 1379 | 30 586 179 584 Hop . | . . . . Pick Up 32 | . 20 . 12 Fast Attach 6 | 2 4 . . Attach 5 | . 3 . 2 Detach . | . . . . Swap 16 | 1 7 2 6 Drop 31 | 1 18 . 12 Fire 75 | 9 62 2 2 Melee 12 | . . . 12 Ram . | . . . . Kick . | . . . . Crush 2 | . 2 . . Escape Stasis . | . . . . Rewire . | . . . . Trap . | . . . . Miscellaneous . | . . . . Route ------- -11/Scrapyard -10/Materials (discovered 5 exits: [*Mat x3] / [*Min x2]) -10/Mines -10/Exiles (discovered 1 exit: [*Min]) History --------- Turn | Location | Event 9 | -11/Scrapyard | Discovered new exit (range 3) 90 | -11/Scrapyard | Entered Materials 90 | -10/Materials | Discovered new exit (range 7) 126 | -10/Materials | Central database locked down 246 | -10/Materials | Discovered new exit (range 15) 313 | -10/Materials | Build established: Mutant 462 | -10/Materials | Discovered new exit (range 15) 812 | -10/Materials | Discovered new exit (range 10) 970 | -10/Materials | Discovered new exit (range 11) 1284 | -10/Materials | Entered Mines 1313 | -10/Mines | Assembled infested the area 1318 | -10/Mines | Assisted by a Guerilla fighting off Assembled 1877 | -10/Mines | Deemed a non-threat by the Exiles lab entrance 1877 | -10/Mines | Discovered new exit (range 5) 1884 | -10/Mines | Entered Exiles 1928 | -10/Exiles | Met 8R-AWN 1997 | -10/Exiles | Met EX-HEX 2085 | -10/Exiles | Met EX-DEC 2114 | -10/Exiles | Learned location of Zion (-6) 2380 | -10/Exiles | Met EX-BIN 2401 | -10/Exiles | Aligned with FarCom system 2403 | -10/Exiles | Given EX-Vault access code 2445 | -10/Exiles | Opened EX-Vault 2461 | -10/Exiles | Found Field Lobotomy Kit 2468 | -10/Exiles | Build established: Hauler-Mutant 2496 | -10/Exiles | Warned to stay clear of 0b10 Research branches 2613 | -10/Exiles | Discovered new exit (range 15) 2961 | -10/Exiles | Attacked by the Exiles 2967 | -10/Exiles | Destroyed EX-HEX 2992 | -10/Exiles | Core integrity fell below 50% 3007 | -10/Exiles | Core integrity fell below 20% 3010 | -10/Exiles | Destroyed by 8R-AWN with 8R-AWN's Boregun Last Messages --------------- 02983_ Extracted 15 matter. 02984_ Penetrated by HV Slug. 02985_ Mining Claw follow-up attack on 8R-AWN. 02986_ Penetrated by HV Slug. 02988_ The unstable cave ceiling collapses. 02989_ Penetrated by HV Slug. 02989_ HV Slug penetrates Wall. 02991_ Penetrated by HV Slug. 02993_ Critical hit. 02993_ Lgt. Treads destroyed. 02997_ HV Slug penetrates Wall. 02997_ Penetrated by HV Slug. 02997_ HV Slug penetrates Assembled Analyzer. 02999_ Penetrated by HV Slug. 03003_ Critical hit. 03003_ Lgt. Treads destroyed. 03003_ Penetrated by HV Slug. 03006_ Ion Engine destroyed. 03006_ 8R-AWN Prototype Leg ripped off. 03008_ Penetrated by HV Slug. Map ----- +----------------------------------------------------+ | """#?????????????????????????????????????? | | """#?????????????????????????????????????? | | """"?????????????????????????????????????? | | """#?????????????????????????????????????? | | "X" """"?????????????????????????????????????? | | """ #?????????????????????????????????????? | | """""""""#?????????????????????????????????????? | | ###########?????????????????????????????????????? | | #???????????????????????????????????????????????? | | #???????????????????????????????????????????????? | | ##??????????????????????????????????????????????? | | ##???###########???????????????????????????????? | | #####"""" """"##??????????????????????????????? | | " """ """"##?????????????????????????????? | | "" " #?????????????????????????????? | | " """#?????????????????????????????? | | a"#???????????#####?????????????? | | "##?????????##" #?????????????? | | "###???????#" #?????????????# | | ""#??????##" ##????????????# | | " "#????### ###????????### | | ##""" !##???# ########## | | ?##""" !!%##?## #""""## | | ??#"""" !!!!### | | ?##"" !!!!!! ## | | ##"""" !=! @ #### | | "" g ""#?#"""""#### | | #"""##?#######??#### | | ######??????????????##### | | #???????????????????????# | | " ##???????????????????????? | | "" " ????????????????????????? | | #""" " " ""# #????????????????????????? | | #####""" """ ##?????????????????????????? | | ????###""""# #???????????????????????????? | | ###???######?## # ##????????????????????????????? | | " #??????????? ??????????????????????????????? | | #????????????? ???????????????????????????????? | | "#??????????????????????????????????????????????? | | !"#??????????????????????????????????????????????? | | ###??????????????????????????????????????????????? | | ?????????????????????????????????????????????????? | | ?????????????????????????????????????????????????? | | ?????????????????????????????????????????????????? | | ?????????????????????????????????????????????????? | | ?????????????????????????????????????????????????? | | ?????????????????????????????????????????????????? | | ?????????????????????????????????????????????????? | | ?????????????????????????????????????????????????? | | ?????????????????????????????????????????????????? | +----------------------------------------------------+ Best States ------------- Heat Dissipation 35 Energy Generation 10 Energy Capacity 250 Matter Stores 300 Matter Capacity 300 Sight Range 16 Terrain Scan Range 16 Terrain Scan Density 10 Evasion (%) 40 Recoil Reduction 2 Item Schematics ----------------- None Robot Schematics ------------------ None Fabricated ------------ Nothing Alien Tech Used ----------------- None Achievements -------------- None Challenges ------------ None Game ------ Seed KineticAssemblyMachine Manual? 0 Play Time 00:16:29 Cumulative 769.2 hours Start 2020.11.01 @ 11:20:28 End 2020.11.01 @ 11:33:31 Sessions 1 Manual Loads 0 Difficulty Rogue Special Mode Halloween2020/ForbiddenLore Game No. 499 Rogue 499 Adventurer 0 Explorer 0 Win Type - Total 112 Types 76/7/8/10/5/1/4/0/1 Lore% 96 Gallery% 94 Achievement% 81 Wizard Run 0 Options --------- ASCII 0 Keyboard 0 Movement Numpad Keybinds 0 Fullscreen 2 Font 18/SmallcapsGlow Map View 76x50 Tactical HUD 1 Map Filters NONE Filters NONE Steam 1 RUN: 956591a7-77aa-46c0-90da-de2d6031795f